Cogmind - Beta 13 @@@ ROGUE MODE // 2024.04.27 @ 01:43:28 Player: GregoriusTechneticies Result: Destroyed by P-60 Hacker with Shock Rifle Performance ------------- Evolutions (4) 2000 Regions Visited (5) 1000 Robots Destroyed (2) 10 Value Destroyed (6) 6 Prototype IDs (0) 0 Alien Tech Used (0) 0 Bonus (1325) 1325 TOTAL SCORE: 4341 Bonus ------- Pacifist 1325 Cogmind --------- Core Integrity 0/850 Matter 134/300 Energy 99/100 System Corruption 0% Temperature Cool (0) Movement Core (50) Location -6/Factory Parts ------- > --- POWER (1) -------- (None) > --- PROPULSION (2) --- (None) > --- UTILITY (10) ----- Machine Analyzer Improved Signal Interpreter Advanced Terrain Scan Processor Targeting Computer Improved Melee Analysis Suite Corruption Screen > --- WEAPON (2) ------- Power Maul > --- INVENTORY (5) ---- Compact Wheel High-capacity Battery (250) Large Matter Pod (0) Gauss Cannon Great Axe Peak State ------------ > --- POWER ------------ (None) > --- PROPULSION ------- Cesium-ion Thruster > --- UTILITY ---------- Weight Redist. System Trap Scanner Machine Analyzer Improved Sensor Array Improved Sensor Array Improved Terrain Scanner Improved Melee Analysis Suite > --- WEAPON ----------- Greatsword > --- INVENTORY -------- High-capacity Battery Large Matter Pod Gauss Cannon Power Maul Great Axe [Rating: 33] Favorites ----------- Power Micro Nuclear Core Power Core Micro Nuclear Core Propulsion Cesium-ion Thruster Flight Unit Cesium-ion Thruster Utility Improved Sensor Array Device Improved Sensor Array Storage Compact Battery Processor Improved Melee Analysis Suite Weapon Improved Datajack Special Weapon Remote Datajack Impact Weapon Power Maul Slashing Weapon Greatsword Special Melee Weapon Improved Datajack Build | -11 -10 -9 -8 -7 -6 ------- Run | Yrd Mat Mat Mat Fac Fac Slots Evolved 8 | . . 2 2 2 2 Power . | . . . . . . Propulsion . | . . . . . . Utility 8 | . . 2 2 2 2 Weapon . | . . . . . . Parts Attached 23 | . . . 5 12 6 Power 1 | . . . . 1 . Engine . | . . . . . . Core 1 | . . . . 1 . Reactor . | . . . . . . Propulsion 2 | . . . 1 1 . Treads . | . . . . . . Leg . | . . . . . . Wheel . | . . . . . . Hover . | . . . . . . Flight 2 | . . . 1 1 . Utility 15 | . . . 4 7 4 Device 7 | . . . 4 2 1 Storage 2 | . . . . 2 . Processor 6 | . . . . 3 3 Hackware . | . . . . . . Protection . | . . . . . . Artifact . | . . . . . . Weapon 5 | . . . . 3 2 Energy Gun . | . . . . . . Energy Cannon . | . . . . . . Ballistic Gun . | . . . . . . Ballistic Cannon . | . . . . . . Launcher . | . . . . . . Special Weapon 1 | . . . . . 1 Impact Weapon 2 | . . . . 1 1 Slashing Weapon 1 | . . . . 1 . Piercing Weapon . | . . . . . . Special Melee Weapon 1 | . . . . 1 . Unidentified Prototypes . | . . . . . . Parts Lost 9 | . . . . 3 6 Power . | . . . . . . Propulsion 2 | . . . . 1 1 Utility 6 | . . . . 1 5 Weapon 1 | . . . . 1 . Highest Loss Streak 6 | . . . . 3 6 To Critical Strikes . | . . . . . . Average Slot Usage (%) 39 | . . . 13 59 47 Flight 5 | . . . 2 9 2 Device 20 | . . . 11 34 14 Processor 11 | . . . . 11 27 Naked Turns 171 | . 26 118 27 . . Heaviest Build 6 | . . . 4 6 4 Greatest Support 9 | 3 3 3 5 9 5 Greatest Overweight (x) 1 | . . . . . 1 Average Overweight (x) . | . . . . . . Largest Inventory Capacity 5 | 5 5 5 5 5 5 Average Capacity 5 | 5 5 5 5 5 5 Most Carried 5 | . 1 5 5 5 5 Average Carried 4 | . . 3 4 4 4 Final Capacity 5 | 5 5 5 5 5 5 Final Carried 5 | . 1 5 5 5 5 Class Distribution -------------------- 54% | Scout 45% | Mutant Dominant Class ---------------- Mutant | -10/Materials Mutant | -9/Materials Mutant | -8/Materials Scout | -7/Factory Mutant | -6/Factory Resources | -11 -10 -9 -8 -7 -6 ----------- Run | Yrd Mat Mat Mat Fac Fac Matter Collected 219 | 200 . . . . 19 Remotely . | . . . . . . Salvage Created 31 | . . . . . 31 Parts . | . . . . . . Haulers Intercepted . | . . . . . . Recyclers Shooed . | . . . . . . Parts Field Recycled . | . . . . . . Retrieved Matter . | . . . . . . Parts Self-Destructed . | . . . . . . Prevented . | . . . . . . Kills | -11 -10 -9 -8 -7 -6 ------- Run | Yrd Mat Mat Mat Fac Fac Combat Hostiles Destroyed . | . . . . . . Classes Destroyed 2 | . . . . . 2 Worker 1 | . . . . . 1 Builder 1 | . . . . . 1 Best Kill Streak 2 | . . . . . 2 Combat Bots Only . | . . . . . . Max Kills in Single Turn 1 | . . . . . 1 Gunslinging . | . . . . . . Exploded . | . . . . . . Melee . | . . . . . . Uniques/NPCs Destroyed . | . . . . . . Combat | -11 -10 -9 -8 -7 -6 -------- Run | Yrd Mat Mat Mat Fac Fac Hostile Shots Fired 198 | . . 34 2 21 141 Missed 87 | . . 12 1 10 64 Damage Taken 1647 | . . 255 15 188 1189 Core 1228 | . . 255 15 94 864 Absorbed by Shields . | . . . . . . Core Remaining (%) 83 | 100 100 36 97 86 . Volleys Fired . | . . . . . . Largest . | . . . . . . Hottest . | . . . . . . Shots Fired . | . . . . . . Gun . | . . . . . . Cannon . | . . . . . . Launcher . | . . . . . . Special . | . . . . . . Kinetic . | . . . . . . Thermal . | . . . . . . Explosive . | . . . . . . Electromagnetic . | . . . . . . Robot Hit Streak . | . . . . . . Robot Miss Streak . | . . . . . . Penetration Max . | . . . . . . Secondary Targets . | . . . . . . Shots Hit Robots 2 | . . . . . 2 Core Hits 1 | . . 1 . . . Critical Kills . | . . . . . . Critical Parts Destroyed . | . . . . . . Critical Strikes . | . . . . . . Melee Attacks 5 | . . . . 1 4 Impact 4 | . . . . . 4 Slashing . | . . . . . . Piercing . | . . . . . . Sneak Attacks 2 | . . . . . 2 Combat Hostiles . | . . . . . . Follow-up Attacks . | . . . . . . Damage Inflicted 181 | . . 7 . . 174 Guns . | . . . . . . Cannons . | . . . . . . Explosions . | . . . . . . Melee 174 | . . . . . 174 Ramming 7 | . . 7 . . . Kinetic . | . . . . . . Thermal . | . . . . . . Explosive . | . . . . . . Electromagnetic . | . . . . . . Impact 174 | . . . . . 174 Slashing . | . . . . . . Piercing . | . . . . . . Highest Corruption . | . . . . . . Average Corruption . | . . . . . . Corruption Purged . | . . . . . . Corruption Blocked . | . . . . . . Overload Shots . | . . . . . . Overflow Damage 129 | . . . . . 129 Projectiles . | . . . . . . Explosions . | . . . . . . Melee 129 | . . . . . 129 Knockbacks 1 | . . . . . 1 Impact 1 | . . . . . 1 Kinetic . | . . . . . . Secondary . | . . . . . . Self-Inflicted Damage 3 | . . 3 . . . Shots . | . . . . . . Rammed 2 | . . 2 . . . Targets Rammed 2 | . . 2 . . . Kicked . | . . . . . . Crushed . | . . . . . . Highest Temperature . | . . . . . . Average Temperature . | . . . . . . Received Heat Transfer 162 | . . 123 9 12 18 Siege Activations . | . . . . . . Robots Corrupted . | . . . . . . Combat Hostiles . | . . . . . . Parts Fried 2 | . . . . . 2 Impact Corruptions 5 | . . . . . 5 Robots Melted . | . . . . . . Combat Hostiles . | . . . . . . Parts Melted . | . . . . . . Heat Transferred . | . . . . . . Parts Sabotaged . | . . . . . . Parts Stolen . | . . . . . . Parts Stripped . | . . . . . . Power Chain Reactions . | . . . . . . Alert | -11 -10 -9 -8 -7 -6 ------- Run | Yrd Mat Mat Mat Fac Fac Peak Influence 213 | . . 107 59 197 213 Initial 81 | . . . 44 33 81 Average 67 | . . 40 46 74 105 Maximum Alert Level 1 | . . . . . 1 Low Security (%) 99 | 100 100 100 100 100 99 Level 1 . | . . . . . . Level 2 . | . . . . . . Level 3 . | . . . . . . Level 4 . | . . . . . . Level 5 . | . . . . . . High Security . | . . . . . . Max Security . | . . . . . . Squads Dispatched 11 | . . 5 . 3 3 Investigation 7 | . . 5 . 1 1 Extermination 1 | . . . . 1 . Reinforcement 3 | . . . . 1 2 Assault . | . . . . . . Garrison . | . . . . . . Intercept . | . . . . . . Searches Triggered . | . . . . . . Construction Impeded 1 | . . . . . 1 Haulers Reinforced . | . . . . . . Active Scanning Responses . | . . . . . . Cargo Convoy Interrupts . | . . . . . . Stealth | -11 -10 -9 -8 -7 -6 --------- Run | Yrd Mat Mat Mat Fac Fac Distress Signals 2 | . . . 1 . 1 Communications Jammed . | . . . . . . Distress Signals . | . . . . . . Times Spotted 54 | . . 14 4 12 24 Peak Tracking Total 19 | . . 12 5 8 19 Tactical Retreats 5 | . . 1 . 1 3 Traps | -11 -10 -9 -8 -7 -6 ------- Run | Yrd Mat Mat Mat Fac Fac Traps Triggered 3 | . . 1 . 2 . Indirectly . | . . . . . . Trap Hack Attempts . | . . . . . . Triggered . | . . . . . . Disarmed . | . . . . . . Reprogrammed . | . . . . . . Reused . | . . . . . . Traps Extracted . | . . . . . . Installed . | . . . . . . Triggered . | . . . . . . Machines | -11 -10 -9 -8 -7 -6 ---------- Run | Yrd Mat Mat Mat Fac Fac Machines Disabled . | . . . . . . Max in Single Turn . | . . . . . . Garrison Access 1 | . . . . . 1 Machines Repaired . | . . . . . . Machines Dismantled . | . . . . . . Machines Sabotaged . | . . . . . . Overloaded Fab Kills . | . . . . . . Hacking | -11 -10 -9 -8 -7 -6 --------- Run | Yrd Mat Mat Mat Fac Fac Machines Accessed 15 | . 1 5 1 5 3 Terminals 12 | . 1 4 1 5 1 Fabricators 1 | . . . . . 1 Repair Stations 1 | . . 1 . . . Recycling Units . | . . . . . . Scanalyzers . | . . . . . . Garrison Access 1 | . . . . . 1 Total Hacks 42 | . 4 19 2 8 9 Successful 11 | . 1 5 . 3 2 Failed 31 | . 3 14 2 5 7 Catastrophic 8 | . . 1 1 3 3 Database Lockouts . | . . . . . . Manual 32 | . 4 15 2 7 4 Terminals 33 | . 4 15 2 8 4 Fabricators 3 | . . . . . 3 Repair Stations 4 | . . 4 . . . Recycling Units . | . . . . . . Scanalyzers . | . . . . . . Garrison Access 2 | . . . . . 2 Terminal Hacks 2 | . . 1 . 1 . Open DSF 1 | . . . . 1 . Level Access Points 1 | . . 1 . . . Fabricator Hacks 1 | . . . . . 1 Network Status 1 | . . . . . 1 Repair Station Hacks . | . . . . . . Recycling Unit Hacks . | . . . . . . Scanalyzer . | . . . . . . Garrison Access Hacks 1 | . . . . . 1 Seal Access 1 | . . . . . 1 Unauthorized Hacks 7 | . 1 4 . 2 . Terminals 7 | . 1 4 . 2 . Botnet 7 | . 1 4 . 2 . Fabricators . | . . . . . . Repair Stations . | . . . . . . Recycling Units . | . . . . . . Scanalyzers . | . . . . . . Garrison Access . | . . . . . . Data Cores Recovered . | . . . . . . Used . | . . . . . . Hacking Detections 13 | . 1 5 1 4 2 Full Trace Events 7 | . . 4 1 1 1 Feedback Events . | . . . . . . Feedback Blocked . | . . . . . . Robot Schematics Acquired . | . . . . . . Robots Built . | . . . . . . Authchips . | . . . . . . Time . | . . . . . . Total Robot Build Rating . | . . . . . . Part Schematics Acquired . | . . . . . . Parts Built . | . . . . . . Authchips . | . . . . . . Time . | . . . . . . Total Part Build Rating . | . . . . . . Parts Repaired . | . . . . . . Time . | . . . . . . Parts Recycled . | . . . . . . Recycled Matter . | . . . . . . Retrieved Matter . | . . . . . . Retrieved Components . | . . . . . . Parts Scanalyzed . | . . . . . . Part Schematics Acquired . | . . . . . . Parts Damaged . | . . . . . . Bothacking | -11 -10 -9 -8 -7 -6 ------------ Run | Yrd Mat Mat Mat Fac Fac Used RIF Installer . | . . . . . . Robots Hacked . | . . . . . . Non-combat . | . . . . . . Combat . | . . . . . . Robot Hacks Applied . | . . . . . . Relay Couplers Released . | . . . . . . Fabnet Peak Effective % . | . . . . . . Robots Rewired . | . . . . . . Allies Hacked . | . . . . . . Hacks Repelled . | . . . . . . Allies | -11 -10 -9 -8 -7 -6 -------- Run | Yrd Mat Mat Mat Fac Fac Total Allies . | . . . . . . Largest Group . | . . . . . . Highest-Rated Group . | . . . . . . Highest-Rated Ally . | . . . . . . Total Orders . | . . . . . . Ally Attacks . | . . . . . . Total Damage . | . . . . . . Kills . | . . . . . . Allies Corrupted . | . . . . . . Allies Melted . | . . . . . . Intel | -11 -10 -9 -8 -7 -6 ------- Run | Yrd Mat Mat Mat Fac Fac Robot Analysis Total . | . . . . . . Derelict Logs Recovered . | . . . . . . Drone Launches . | . . . . . . Drone Recoveries . | . . . . . . Exploration | -11 -10 -9 -8 -7 -6 ------------- Run | Yrd Mat Mat Mat Fac Fac Turns Passed 723 | 17 26 118 82 333 147 Spaces Moved 1367 | 35 49 223 153 613 294 Core 527 | 35 49 223 99 . 121 Treads . | . . . . . . Legs . | . . . . . . Wheels . | . . . . . . Hover . | . . . . . . Flight 840 | . . . 54 613 173 Fastest Speed 32 | 50 50 50 35 32 35 Average Speed 40 | 50 50 50 44 34 42 Slowest Speed 100 | 50 50 50 50 35 100 Overloaded Moves . | . . . . . . Propulsion Burnouts . | . . . . . . Robots Hopped 5 | . . . 4 1 . Cave-ins Triggered . | . . . . . . Exploration Rate (%) 15 | 3 14 21 21 18 15 Regions Visited 5 Branch Regions . Pre-discovered Areas . | . . . . . . Known Exits Taken 1 | . . 1 . . . Unknown Exits Taken 4 | 1 1 . 1 1 . Scrap Searched . | . . . . . . Spaces Dug 2 | . . . . . 2 Terrain Destroyed 2 | . . . . . 2 Melee 2 | . . . . . 2 Projectile . | . . . . . . AOE . | . . . . . . Terrain Rammed . | . . . . . . Walls Destroyed . | . . . . . . Machines Disabled . | . . . . . . Actions | -11 -10 -9 -8 -7 -6 --------- Run | Yrd Mat Mat Mat Fac Fac Total 1513 | 34 49 228 162 734 306 Wait 62 | . . . . 62 . Move 1352 | 34 48 222 144 610 294 Hop 5 | . . . 4 1 . Pick Up 14 | . 1 4 4 4 1 Fast Attach 19 | . . . 4 10 5 Attach 4 | . . . 1 2 1 Detach 2 | . . . 1 1 . Swap . | . . . . . . Drop 12 | . . . 4 7 1 Fire . | . . . . . . Melee 5 | . . . . 1 4 Ram 2 | . . 2 . . . Kick . | . . . . . . Crush . | . . . . . . Escape Stasis 36 | . . . . 36 . Rewire . | . . . . . . Trap . | . . . . . . Miscellaneous . | . . . . . . Route ------- -11/Scrapyard -10/Materials -9/Materials (discovered 3 exits: *Mat x3) -8/Materials -7/Factory -6/Factory History --------- Turn | Location | Event 5 | -11/Scrapyard | Discovered new exit (range 15) 18 | -11/Scrapyard | Entered Materials 42 | -10/Materials | Discovered new exit (range 4) 44 | -10/Materials | Entered another Materials area 44 | -9/Materials | Evolved 2 slots: Utility x2 150 | -9/Materials | Identified exit to Materials 154 | -9/Materials | Core integrity fell below 50% 162 | -9/Materials | Entered another Materials area 162 | -8/Materials | Evolved 2 slots: Utility x2 243 | -8/Materials | Discovered new exit (range 3) 244 | -8/Materials | Entered Factory 244 | -7/Factory | Evolved 2 slots: Utility x2 486 | -7/Factory | Build established: Scout 538 | -7/Factory | Identified exit to DSF 571 | -7/Factory | Discovered new exit (range 12) 577 | -7/Factory | Entered another Factory area 577 | -6/Factory | Evolved 2 slots: Utility x2 607 | -6/Factory | Lost 3 parts (1n1u1w) 671 | -6/Factory | Core integrity fell below 50% 696 | -6/Factory | Spotted B-75 Beast 703 | -6/Factory | Lost 6 parts (1n5u) 707 | -6/Factory | Core integrity fell below 20% 724 | -6/Factory | Destroyed by P-60 Hacker with Shock Rifle Last Messages --------------- 00704_ ALERT: Construction progress impeded, dispatching reinforcements to local area. 00705_ U-05 Engineer system terminally corrupted. 00705_ Wheel fried. 00707_ Acquired 19 matter. 00711_ ALERT: Suspicious intruders detected, dispatching Cutter reinforcements to area. 00711_ S-27 Virus destroyed. 00712_ K-01 Serf destroyed. 00714_ Sneak attack on K-01 Serf. 00714_ Destroyed Med. Matter Pod. 00714_ Destroyed Wheel. 00714_ K-01 Serf system corrupted by crushing effect. 00714_ K-01 Serf destroyed. 00721_ >> Machine Analyzer network decryption results: 00721_ Recycling Unit x4 00723_ Slug penetrates Wall. Map ----- +----------------------------------------------------+ | ?????????????????????????????????????????????????? | | ?????????????????????????????????????????????????? | | ?????????????????????????????????????????????????? | | ?????????????????????????????????????????????????? | | ?????????????????????????????????????????????????? | | ?????????????????????????????????????????????????? | | ?????????????????????????????????????????????????? | | ?????????????????????????????????????????????????? | | ?????????????????????????????????????????????????? | | ?????????????????????????????????????????????????? | | ?????????????????????????????????????????????????? | | ????????????????????????????? ???????????????????? | | ????????????????????????##### ??????????????????? | | ???????????????????????? ???????????????????? | | ???????????????????????? ???????????????????? | | ?????????????????????""? ???????????????????? | | ??????????????????#??""? ????????????????????? | | ??????????????????# ?"Y " u ????????????????????? | | ??????????????????# "" " ????????????????????? | | ??????????????????# "" " ?????????????????????? | | ??????????????????# " ?????????????????????? | | ??????????????????# " #?????????????????????? | | ??????????????????# " #?????????????????????? | | ??????????????????# " u#?????????????????????? | | ??????????????????# " #?""??????????????????? | | ??????????????????# "@ #?""??????????????????? | | ??????????????????# #?"""?????????????????? | | ??????????????????# #?"""?????????????????? | | ??????????????????##"Y"### #?"""?????????????????? | | ???????????????????#"""??# #?????????????????????? | | ???????????????????###???# #????????????????????"? | | ????????????????????????## ;#####???????????????"? | | ????????????????????????# #???????????????"? | | ????????????############# #???????????????"? | | ??????????? #???????????????"? | | ?????? H #???????????????"? | | ????? #???????????????"? | | #??????############" s #???????????????"? | | #?????????????????## p #???????????????"? | | #??""""?""""???????####s#####???????????????? | | #??""""?""""???????# % #???????????????? | | #??""""?""""???????# """ #???????????????? | | #??""""?""""?####### """ #???????????????? | | #??""""?""""?+ + """ #???????????????? | | #??""""?""""?## *%!# ! ]#???????????????? | | #??""""?""""??# # """ #???????????????? | | #?????????????# # """ #???????????????? | | #?????????????# # """ #???????????????? | | # #?????????????# # #??"""??????????? | | # #?????????????# %= ########+???"""??????????? | +----------------------------------------------------+ Best States ------------- Heat Dissipation 37 Energy Generation 5 Energy Capacity 300 Matter Stores 300 Matter Capacity 300 Sight Range 16 Robot Scan Range 15 Terrain Scan Range 16 Terrain Scan Density 210 Corruption Block 8 Evasion (%) 63 Targeting Accuracy 5 Melee Accuracy 6 Item Schematics ----------------- None Robot Schematics ------------------ None Fabricated ------------ Nothing Alien Tech Used ----------------- None Achievements -------------- None Challenges ------------ None Game ------ Seed ActiveScatterArchive Manual? 0 Play Time 00:25:35 Cumulative 56.9 hours Start 2024.04.27 @ 01:16:16 End 2024.04.27 @ 01:43:28 Sessions 1 Manual Loads 0 Difficulty Rogue Special Mode None Game No. 84 Rogue 69 Adventurer 0 Explorer 15 Win Type - Total 0 Types 0/0/0/0/0/0/0/0/0 Lore% 33 Gallery% 40 Achievement% 29 Wizard Run 0 Options --------- Layout 1 ASCII 0 Keyboard 0 Movement Mouse Keybinds 0 Fullscreen 1 Font 24/Smallcaps Map View 50x35 Zoom Use 0% Tactical HUD 1 Map Filters NONE Filters NONE Steam 1 RUN: 7e290c73-c7c5-4563-bbbd-6a8f7a2cfa8c